bitfinex/quotes_BTCUSD_20250205
["timestamp","ask_amount","ask_price","bid_price","bid_amount"]
[1738777757318,0.01,97532.0,97529.0,0.525365]
[1738777757523,0.01,97532.0,97529.0,0.205065]
[1738777757768,0.01,97532.0,97531.0,0.355061]
[1738777757944,0.02,97532.0,97531.0,0.205061]
[1738777758335,0.02,97520.0,97519.0,0.15]
[1738777758540,0.0986,97520.0,97519.0,0.153816]
[1738777759157,0.01,97515.0,97514.0,0.205098]
[1738777759350,0.02,97515.0,97514.0,0.355098]
[1738777761427,0.01,97516.0,97514.0,0.355098]
[1738777761673,0.0886,97520.0,97519.0,0.153816]
[1738777761868,0.01,97521.0,97520.0,0.153814]
[1738777762063,0.02,97522.0,97520.0,0.153814]
[1738777762474,0.01,97521.0,97520.0,0.153814]
[1738777762612,0.02,97521.0,97520.0,0.153814]
[1738777762813,0.01,97521.0,97520.0,0.153814]
[1738777763021,0.0878,97529.0,97528.0,0.153801]
[1738777763202,0.0978,97529.0,97528.0,0.153801]
[1738777763606,0.01,97517.0,97514.0,0.205097]
[1738777763866,0.01,97517.0,97516.0,0.205093]
[1738777764071,0.02,97517.0,97516.0,0.205093]
[1738777765643,0.0978,97517.0,97516.0,0.205093]
[1738777765775,0.02,97514.0,97512.0,0.00022449]
[1738777765980,0.32402765,97514.0,97512.0,0.00022449]
[1738777766180,0.40182765,97514.0,97512.0,0.00022449]
[1738777766561,0.24800365,97514.0,97512.0,0.00022449]
[1738777766747,0.23800365,97514.0,97512.0,0.00022449]
[1738777766953,0.24800365,97514.0,97513.0,0.15404949]
[1738777769795,0.1455,97514.0,97513.0,0.15404949]
[1738777770004,0.1355,97514.0,97513.0,0.15404949]
[1738777770209,0.01,97514.0,97513.0,0.15404949]
[1738777770398,0.02,97514.0,97513.0,0.15404949]
[1738777770594,0.01,97514.0,97513.0,0.15404949]
[1738777770791,0.0465,97529.0,97517.0,0.303819]
[1738777770792,0.01,97518.0,97517.0,0.303819]
[1738777771010,0.02,97518.0,97517.0,0.303819]
[1738777771863,0.02,97518.0,97517.0,0.153819]
[1738777772065,0.02,97518.0,97513.0,0.00022449]
[1738777772264,0.02,97514.0,97513.0,0.35914949]
[1738777772470,0.1014,97514.0,97513.0,0.35914949]
[1738777773238,0.1014,97514.0,97513.0,0.00022449]
[1738777773439,0.1014,97514.0,97513.0,0.15404949]
[1738777773651,0.40662765,97514.0,97513.0,0.00022449]
[1738777773894,0.44729042,97514.0,97513.0,0.00022449]
[1738777774309,0.44729042,97514.0,97512.0,0.00022449]
[1738777774310,0.153825,97513.0,97512.0,0.00022449]
[1738777774511,0.40662865,97513.0,97512.0,0.00022449]
[1738777775086,0.4174871,97513.0,97512.0,0.00022449]
[1738777778208,0.43486062,97513.0,97512.0,0.00022449]
[1738777778441,0.43486062,97513.0,97494.0,0.08209128]
[1738777778442,0.1466,97499.0,97494.0,0.08209128]
[1738777778591,0.1366,97499.0,97497.0,0.153849]
[1738777778800,0.1466,97499.0,97497.0,0.153849]
[1738777779661,0.0983,97499.0,97497.0,0.153849]
[1738777779850,0.02,97499.0,97497.0,0.153849]
[1738777780013,0.02,97499.0,97498.0,0.15407328]
[1738777787267,0.03085845,97499.0,97498.0,0.15407328]
[1738777788081,0.02085845,97499.0,97498.0,0.15407328]
[1738777788876,0.01,97499.0,97498.0,0.15407328]
[1738777789680,0.02,97499.0,97498.0,0.15407328]
[1738777790844,0.02,97499.0,97498.0,0.16431006]
[1738777791044,0.01,97499.0,97498.0,0.31431006]
[1738777791251,0.01,97506.0,97505.0,0.303838]
[1738777791452,0.02,97506.0,97505.0,0.326838]
[1738777791675,0.01,97511.0,97506.0,0.173]
[1738777791940,0.0001069,97514.0,97513.0,0.153825]
[1738777792123,0.0101069,97514.0,97513.0,0.326825]
[1738777792940,0.0001069,97514.0,97513.0,0.326825]
[1738777793523,0.0101069,97514.0,97513.0,0.326825]
[1738777793732,0.0001069,97514.0,97513.0,0.326825]
[1738777793979,0.0001069,97514.0,97513.0,0.42932865]
[1738777795125,0.0001069,97514.0,97513.0,0.43943395]
[1738777795320,9e-07,97514.0,97513.0,0.47133532]
[1738777795528,9e-07,97514.0,97513.0,0.43943395]
[1738777795754,9e-07,97514.0,97513.0,0.47132429]
[1738777796525,9e-07,97514.0,97513.0,0.43943395]
[1738777797625,9e-07,97514.0,97513.0,0.3369303]
[1738777799261,9e-07,97514.0,97489.0,0.153862]
[1738777799262,0.01,97499.0,97489.0,0.153862]
[1738777799485,0.0538227,97499.0,97467.0,0.00022428]
[1738777799638,0.02,97499.0,97479.0,0.20517]
[1738777799858,1.52,97499.0,97492.0,0.153857]
[1738777800117,0.02,97499.0,97494.0,0.153854]
[1738777800315,0.02,97499.0,97493.0,0.153857]
[1738777800523,0.02,97499.0,97487.0,0.205153]
[1738777800853,0.12250365,97499.0,97490.0,0.205147]
[1738777801043,0.12250365,97499.0,97494.0,0.153854]
[1738777801221,0.12250365,97499.0,97492.0,0.153857]
[1738777801403,0.12250365,97499.0,97493.0,0.205142]
[1738777801611,0.02,97499.0,97498.0,0.15407328]
[1738777804447,0.12250365,97499.0,97498.0,0.00022428]
[1738777804620,0.29066065,97499.0,97498.0,0.00022428]
[1738777805073,0.12250365,97499.0,97498.0,0.00022428]
[1738777805284,0.27635065,97499.0,97498.0,0.00022428]
[1738777805823,0.35645065,97499.0,97498.0,0.00022428]
[1738777806824,0.153883,97477.0,97470.0,0.153893]
[1738777807026,0.02,97470.0,97468.0,0.23621056]
[1738777807245,0.12250365,97470.0,97468.0,0.23621056]
[1738777807425,0.12250365,97470.0,97468.0,0.00022428]
[1738777807767,0.12250365,97470.0,97469.0,0.15411886]
[1738777807893,0.1219,97476.0,97469.0,0.00022386]
[1738777808090,0.1219,97476.0,97475.0,0.153885]
[1738777808091,0.24440365,97476.0,97475.0,0.153885]
[1738777809130,0.23440365,97476.0,97475.0,0.153885]
[1738777809373,0.24440365,97476.0,97475.0,0.153885]
[1738777810506,0.23440365,97476.0,97475.0,0.153885]
[1738777810733,0.24440365,97476.0,97475.0,0.153885]
[1738777812593,0.02,97470.0,97469.0,0.00022386]
[1738777812794,0.12250365,97470.0,97469.0,0.00022386]
[1738777813053,0.12250365,97470.0,97469.0,0.15411886]
[1738777813344,0.02,97470.0,97469.0,0.15411886]
[1738777814712,0.12250365,97470.0,97469.0,0.00022386]
[1738777814911,0.14694402,97470.0,97469.0,0.00022386]
[1738777815113,0.30083702,97470.0,97469.0,0.00022386]
[1738777815317,0.38303702,97470.0,97469.0,0.00022386]
[1738777816199,0.39203702,97470.0,97469.0,0.00022386]
[1738777816402,0.44143702,97470.0,97469.0,0.00022386]
[1738777817011,0.45225451,97470.0,97469.0,0.00022386]
[1738777817935,0.27392114,97470.0,97469.0,0.00022386]
[1738777818335,0.25310365,97470.0,97469.0,0.00022386]
[1738777818554,0.41699665,97470.0,97469.0,0.00022386]
[1738777819262,0.40799665,97470.0,97469.0,0.00022386]
[1738777820934,0.25410365,97470.0,97469.0,0.00022386]
[1738777822156,0.40799665,97470.0,97469.0,0.00022386]
[1738777822352,0.25410365,97470.0,97469.0,0.00022386]
[1738777824037,0.24410365,97470.0,97469.0,0.15411886]
[1738777824268,0.01,97470.0,97469.0,0.15411886]
[1738777824652,0.02,97470.0,97469.0,0.15411886]
[1738777827445,0.01,97470.0,97469.0,0.15411886]
[1738777828620,0.01,97470.0,97469.0,0.30411886]
[1738777831378,0.02,97471.0,97470.0,0.303893]
[1738777831966,0.01,97471.0,97470.0,0.303893]
[1738777832165,0.02,97471.0,97470.0,0.303893]
[1738777835475,0.02,97471.0,97470.0,0.153893]
[1738777835689,0.0969,97471.0,97470.0,0.153893]
[1738777835900,0.02,97470.0,97469.0,0.00022386]
[1738777836103,0.12250365,97470.0,97469.0,0.00022386]
[1738777836563,0.32429665,97470.0,97469.0,0.00022386]
[1738777836959,0.40269665,97470.0,97469.0,0.00022386]
[1738777837102,0.48400301,97470.0,97469.0,0.00022386]
[1738777839224,0.40269665,97470.0,97469.0,0.00022386]
[1738777840485,0.23880365,97470.0,97469.0,0.00022386]
[1738777840659,0.24880365,97470.0,97469.0,0.00022386]
[1738777841086,0.23880365,97470.0,97469.0,0.00022386]
[1738777841427,0.24880365,97470.0,97469.0,0.00022386]
[1738777841958,0.27368401,97470.0,97469.0,0.00022386]
[1738777842361,0.24880365,97470.0,97469.0,0.00022386]
[1738777843407,0.24880365,97470.0,97469.0,0.15411886]
[1738777844038,0.1463,97470.0,97469.0,0.15411886]
[1738777844244,0.02,97470.0,97469.0,0.15411886]
[1738777844915,0.01,97470.0,97469.0,0.15411886]
[1738777845105,0.02,97470.0,97469.0,0.00022386]
[1738777845250,0.0562,97482.0,97481.0,0.153876]
[1738777845457,0.01,97482.0,97481.0,0.153876]
[1738777846149,0.02,97482.0,97481.0,0.153876]
[1738777846555,0.02,97482.0,97481.0,0.16192774]
[1738777847397,0.235993,97470.0,97439.0,0.02021044]
[1738777847621,0.173928,97448.0,97434.0,0.20548928]
[1738777847862,0.303128,97448.0,97434.0,0.00022428]
[1738777847991,1.864648,97448.0,97434.0,0.00022428]
[1738777848194,0.1492,97448.0,97446.0,0.15393]
[1738777850510,0.26662365,97448.0,97445.0,0.00022449]
[1738777850717,0.25170365,97448.0,97445.0,0.00022449]
[1738777851118,0.25170365,97448.0,97447.0,0.15415349]
[1738777851323,0.25170365,97448.0,97447.0,0.00022449]
[1738777851739,0.1492,97448.0,97447.0,0.00022449]
[1738777851939,0.02,97448.0,97447.0,0.00022449]
[1738777852139,0.01,97448.0,97447.0,0.00022449]
[1738777852372,0.02,97448.0,97447.0,0.00022449]
[1738777854014,0.02,97448.0,97447.0,0.15415349]
[1738777854579,0.01,97449.0,97448.0,0.15]
[1738777854821,0.02,97449.0,97448.0,0.326928]
[1738777860984,0.02,97449.0,97448.0,0.153928]
[1738777861389,0.0975,97449.0,97448.0,0.153928]
[1738777861606,0.0875,97449.0,97448.0,0.153928]
[1738777861812,0.01,97449.0,97448.0,0.153928]
[1738777862021,0.01,97451.0,97450.0,0.023]
[1738777862225,0.02,97454.0,97453.0,0.15392]
[1738777862624,0.01,97454.0,97453.0,0.30392]
[1738777862829,0.01,97458.0,97456.0,0.023]
[1738777863029,0.02,97458.0,97457.0,0.176914]
[1738777863471,0.01,97460.0,97459.0,0.30391]
[1738777863674,0.01,97460.0,97459.0,0.205213]
[1738777863881,0.02,97460.0,97459.0,0.378213]
[1738777864204,0.02,97460.0,97459.0,0.355213]
[1738777864942,0.02,97461.0,97460.0,0.303909]
[1738777865163,0.02,97461.0,97460.0,0.326909]
[1738777865405,0.02,97461.0,97460.0,0.303909]
[1738777865737,0.02,97461.0,97460.0,0.32306674]
[1738777867050,0.02,97461.0,97460.0,0.303909]
[1738777867253,0.01,97465.0,97460.0,0.326909]
[1738777867453,0.02,97465.0,97464.0,0.303902]
[1738777869255,0.02,97465.0,97464.0,0.153902]
[1738777869660,0.02,97465.0,97464.0,0.17305344]
[1738777870663,0.02,97465.0,97464.0,0.153902]
[1738777871872,0.01,97463.0,97452.0,0.00819485]
[1738777872111,0.02,97453.0,97452.0,0.153921]
[1738777873297,0.02,97453.0,97448.0,0.20545949]
[1738777873298,0.02,97449.0,97448.0,0.15415149]
[1738777873494,0.20550365,97449.0,97448.0,0.15415149]
[1738777875503,0.35942965,97449.0,97448.0,0.00022449]
[1738777875717,0.20550365,97449.0,97448.0,0.00022449]
[1738777875894,0.20550365,97449.0,97448.0,0.15415249]
[1738777876254,0.103,97449.0,97448.0,0.15415249]
[1738777877780,0.20550365,97449.0,97448.0,0.00022449]
[1738777878007,0.22056365,97449.0,97448.0,0.00022449]
[1738777878805,0.22056365,97449.0,97448.0,0.15415249]
[1738777879018,0.20550365,97449.0,97448.0,0.15415249]
[1738777880439,0.103,97449.0,97448.0,0.15415249]
[1738777881205,0.02,97449.0,97448.0,0.15415249]
[1738777881613,0.01,97449.0,97448.0,0.00022449]
[1738777881816,0.01,97449.0,97448.0,0.32715249]
[1738777882016,0.01,97450.0,97449.0,0.173]
[1738777882221,0.02,97450.0,97449.0,0.173]
[1738777882426,0.01,97450.0,97449.0,0.173]
[1738777882800,0.02,97450.0,97449.0,0.173]
[1738777883003,0.01,97449.0,97448.0,0.16087024]
[1738777883212,0.02,97449.0,97448.0,0.16087024]
[1738777883838,0.01,97449.0,97448.0,0.16087024]
[1738777884043,0.02,97449.0,97448.0,0.16087024]
[1738777884446,0.02,97449.0,97448.0,0.18387024]
[1738777884447,0.01,97449.0,97448.0,0.18387024]
[1738777884647,0.02,97453.0,97452.0,0.303921]
[1738777884850,0.02,97458.0,97457.0,0.173]
[1738777885147,0.02,97458.0,97457.0,0.15]
[1738777885984,0.0831,97474.0,97456.0,0.153915]
[1738777885985,0.02,97457.0,97456.0,0.153915]
[1738777886213,0.0964,97457.0,97456.0,0.153915]
[1738777886419,0.1451,97457.0,97456.0,0.153915]
[1738777886622,0.02,97449.0,97448.0,0.00022449]
[1738777886867,0.19890365,97449.0,97448.0,0.00022449]
[1738777887391,0.35282965,97449.0,97448.0,0.00022449]
[1738777888179,0.18890365,97449.0,97448.0,0.00022449]
[1738777888382,0.40830773,97449.0,97448.0,0.00022449]
[1738777888751,0.25438173,97449.0,97448.0,0.00022449]
[1738777889135,0.40830773,97449.0,97448.0,0.00022449]
[1738777890001,0.19890365,97449.0,97448.0,0.00022449]
[1738777890593,0.35282965,97449.0,97448.0,0.00022449]
[1738777892283,0.19890365,97449.0,97448.0,0.00022449]
[1738777892587,0.35282965,97449.0,97448.0,0.00022449]
[1738777892786,0.41122965,97449.0,97448.0,0.00022449]
[1738777893033,0.41122965,97449.0,97434.0,0.00022428]
[1738777893034,0.01,97435.0,97434.0,0.00022428]
[1738777893247,0.36745165,97435.0,97434.0,0.00022428]
[1738777893392,0.41375165,97435.0,97434.0,0.00022428]
[1738777893783,1.91375165,97435.0,97434.0,0.00022428]
[1738777894609,0.163978,97416.0,97414.0,0.00022449]
[1738777894816,0.25250365,97416.0,97414.0,0.00022449]
[1738777896455,0.40648165,97416.0,97414.0,0.00022449]
[1738777897891,0.43653679,97416.0,97414.0,0.00022449]
[1738777898405,0.44653679,97416.0,97414.0,0.00022449]
[1738777899807,0.60653679,97416.0,97414.0,0.00022449]
[1738777899980,2.10653679,97416.0,97414.0,0.00022449]
[1738777900564,2.09653679,97416.0,97414.0,0.00022449]
[1738777901382,0.60653679,97416.0,97414.0,0.00022449]
[1738777901996,2.10653679,97416.0,97414.0,0.00022449]
[1738777902499,0.56648165,97416.0,97414.0,0.00022449]
[1738777902700,0.58548165,97416.0,97414.0,0.00022449]
[1738777904098,0.34398,97415.0,97414.0,0.00022449]
[1738777904302,0.52518365,97415.0,97414.0,0.00022449]
[1738777904531,0.57288365,97415.0,97414.0,0.00022449]
[1738777904850,2.1753873,97415.0,97414.0,0.00022449]
[1738777907815,2.05288365,97415.0,97414.0,0.00022449]
[1738777908092,0.55188365,97415.0,97414.0,0.00022449]
[1738777908252,0.41188365,97415.0,97414.0,0.00022449]
[1738777909468,2.08188365,97415.0,97414.0,0.00022449]
[1738777910527,2.07188365,97415.0,97414.0,0.00022449]
[1738777910840,2.1843873,97415.0,97414.0,0.00022449]
[1738777912422,0.7459073,97415.0,97414.0,0.00022449]
[1738777912854,2.2460142,97415.0,97414.0,0.00022449]
[1738777913307,2.2460142,97415.0,97401.0,8.22e-05]
[1738777913308,0.46,97402.0,97401.0,8.22e-05]
[1738777913466,0.71208955,97402.0,97401.0,8.22e-05]
[1738777913857,0.72208955,97402.0,97401.0,8.22e-05]
[1738777914362,2.21208955,97402.0,97401.0,8.22e-05]
[1738777914582,2.22208955,97402.0,97401.0,8.22e-05]
[1738777914753,2.33008955,97402.0,97401.0,8.22e-05]
[1738777914959,2.22208955,97402.0,97401.0,8.22e-05]
[1738777915388,0.02,97374.0,97373.0,0.08209128]
[1738777915595,0.13990715,97374.0,97373.0,0.08209128]
[1738777915765,0.13990715,97374.0,97361.0,0.08209128]
[1738777915766,0.02,97372.0,97361.0,0.08209128]
[1738777915927,0.12250365,97372.0,97371.0,0.15427349]
[1738777916732,0.11250365,97372.0,97371.0,0.15427349]
[1738777916931,0.12250365,97372.0,97371.0,0.15427349]
[1738777917344,0.12250365,97372.0,97371.0,0.00022449]
[1738777917568,0.17069632,97372.0,97371.0,0.00022449]
[1738777917770,0.12250365,97372.0,97371.0,0.00022449]
[1738777917972,0.12250365,97372.0,97371.0,0.15427349]
[1738777918258,0.02,97372.0,97371.0,0.15427349]
[1738777918527,0.01,97372.0,97371.0,0.15427349]
[1738777918730,0.02,97372.0,97371.0,0.15427349]
[1738777919797,0.02,97372.0,97371.0,0.14927349]
[1738777921266,0.01,97372.0,97371.0,0.14927349]
[1738777921467,0.01,97379.0,97378.0,0.154038]
[1738777921643,0.02,97379.0,97378.0,0.154038]
[1738777922871,0.01,97379.0,97378.0,0.327038]
[1738777923047,0.01,97380.0,97379.0,0.173]
[1738777923278,0.01,97380.0,97379.0,0.177037]
[1738777923453,0.02,97380.0,97379.0,0.154037]
[1738777927200,0.01,97380.0,97379.0,0.17806386]
[1738777927545,0.01,97380.0,97379.0,0.177037]
[1738777928321,0.02,97380.0,97379.0,0.154037]
[1738777929330,0.015,97380.0,97379.0,0.154037]
[1738777931975,0.005,97380.0,97379.0,0.177037]
[1738777932394,0.005,97380.0,97379.0,0.18346788]
[1738777932959,0.005,97380.0,97379.0,0.18449469]
[1738777933163,0.005,97380.0,97379.0,0.33449469]
[1738777933395,0.005,97380.0,97379.0,0.33346788]
[1738777933776,0.0457,97405.0,97379.0,0.17943088]
[1738777933982,0.005,97401.0,97398.0,0.154007]
[1738777934192,0.005,97401.0,97400.0,0.154004]
[1738777934361,0.005,97401.0,97400.0,0.327004]
[1738777934543,0.005,97408.0,97407.0,0.153993]
[1738777934745,0.01,97423.0,97407.0,0.176993]
[1738777935102,0.005,97421.0,97414.0,0.326981]
[1738777935264,0.01,97431.0,97414.0,0.42948465]
[1738777935432,0.005,97430.0,97414.0,0.42948465]
[1738777935828,9e-07,97415.0,97414.0,0.42948465]
[1738777936072,9e-07,97415.0,97414.0,0.46142379]
[1738777936277,9e-07,97415.0,97414.0,0.42948465]
[1738777936682,0.005,97454.0,97448.0,0.176928]
[1738777936883,0.09565515,97449.0,97448.0,0.326928]
[1738777937085,0.09065515,97449.0,97448.0,1.10094213]
[1738777937292,0.09065515,97449.0,97448.0,1.66977099]
[1738777937489,0.0001069,97449.0,97448.0,1.66977099]
[1738777937866,0.0001069,97449.0,97448.0,1.64284213]
[1738777938061,0.0001069,97449.0,97448.0,1.66977099]
[1738777938578,0.0001069,97449.0,97448.0,1.67633386]
[1738777938788,0.0001069,97449.0,97448.0,1.69546045]
[1738777939196,0.0001069,97449.0,97448.0,1.66853159]
[1738777939801,0.0001069,97449.0,97448.0,1.69546045]
[1738777940180,0.0001069,97449.0,97448.0,1.72591628]
[1738777942310,0.0001069,97449.0,97448.0,1.59648377]
[1738777942685,0.0001069,97449.0,97448.0,1.05458377]
[1738777943087,0.0001069,97449.0,97448.0,1.08151263]
[1738777943711,0.0001069,97449.0,97448.0,1.02412794]
[1738777943917,0.0001069,97449.0,97448.0,1.15356045]
[1738777944437,0.0001069,97449.0,97448.0,1.12663159]
[1738777944999,0.0001069,97449.0,97448.0,1.15356045]
[1738777945221,0.0001069,97449.0,97448.0,1.12663159]
[1738777945595,9e-07,97449.0,97448.0,1.15356045]
[1738777946396,9e-07,97449.0,97448.0,1.18391339]
[1738777946803,9e-07,97449.0,97448.0,1.15698453]
[1738777947002,9e-07,97449.0,97448.0,1.18391339]
[1738777947225,9e-07,97449.0,97448.0,1.20434353]
[1738777947400,9e-07,97449.0,97448.0,1.17741467]
[1738777948032,9e-07,97449.0,97448.0,1.15698453]
[1738777949248,9e-07,97449.0,97448.0,1.12663159]
[1738777950460,9e-07,97449.0,97448.0,1.15356045]
[1738777950865,0.010107,97478.0,97448.0,1.91869487]
[1738777951067,0.0001069,97482.0,97481.0,0.153876]
[1738777951293,3.9794878,97499.0,97498.0,0.153849]
[1738777951402,3.8769228,97499.0,97498.0,0.99835948]
[1738777951603,3.71104143,97499.0,97498.0,0.99835948]
[1738777951805,3.68342811,97499.0,97498.0,1.02346563]
[1738777952006,3.64653046,97499.0,97498.0,1.12596928]
[1738777952209,3.64653046,97499.0,97498.0,1.10086313]
[1738777953154,3.64653046,97499.0,97498.0,1.15034816]
[1738777953361,3.64653046,97499.0,97498.0,1.15768067]
[1738777954248,3.64653046,97499.0,97498.0,1.12732223]
[1738777956461,3.58499146,97499.0,97498.0,1.12732223]
[1738777956614,3.52586059,97499.0,97498.0,1.66922223]
[1738777956822,3.50731059,97499.0,97498.0,1.66922223]
[1738777957024,3.50731059,97499.0,97498.0,1.98952223]
[1738777957455,3.40474559,97499.0,97498.0,1.98952223]
[1738777958073,3.40474559,97499.0,97498.0,2.01980807]
[1738777958584,3.32269359,97499.0,97498.0,2.01980807]
[1738777958770,3.30218059,97499.0,97498.0,2.01980807]
[1738777959343,3.30218059,97499.0,97498.0,1.98952223]
[1738777959945,3.19227766,97499.0,97498.0,1.98952223]
[1738777960380,3.17176466,97499.0,97498.0,1.98952223]
[1738777960559,3.13073866,97499.0,97498.0,1.98952223]
[1738777960752,3.08971266,97499.0,97498.0,1.98952223]
[1738777960937,2.98538908,97499.0,97498.0,1.98952223]
[1738777961144,2.95275908,97499.0,97498.0,1.98952223]
[1738777961339,2.91173308,97499.0,97498.0,1.98974651]
[1738777961542,2.85030088,97499.0,97498.0,1.98974651]
[1738777963204,2.82978788,97499.0,97498.0,1.98974651]
[1738777963861,2.76824888,97499.0,97498.0,1.98974651]
[1738777964222,2.76824888,97499.0,97498.0,1.97061992]
[1738777964405,2.74773588,97499.0,97498.0,1.97061992]
[1738777964828,2.74773588,97499.0,97498.0,2.01163392]
[1738777966095,2.74773588,97499.0,97498.0,0.16140579]
[1738777966506,2.74773588,97499.0,97498.0,0.31140579]
[1738777966745,2.74773588,97499.0,97498.0,0.16140579]
[1738777966872,2.75273588,97499.0,97498.0,0.16140579]
[1738777967071,2.75273588,97499.0,97498.0,0.20344336]
[1738777967478,2.75273588,97499.0,97498.0,0.18044336]
[1738777967687,2.82953588,97499.0,97498.0,0.17311085]
[1738777968008,2.88833588,97499.0,97498.0,0.17311085]
[1738777968435,2.88833588,97499.0,97498.0,0.15407328]
[1738777969855,2.88833588,97499.0,97498.0,0.00022428]
[1738777971269,2.87833588,97499.0,97498.0,0.00022428]
[1738777971468,2.88833588,97499.0,97498.0,0.00022428]
[1738777974097,2.88833588,97499.0,97498.0,0.15407328]
[1738777976120,2.87833588,97499.0,97498.0,0.15407328]
[1738777976329,2.87333588,97499.0,97498.0,0.32707328]
[1738777976529,2.74773588,97499.0,97498.0,0.42957693]
[1738777977213,2.75273588,97499.0,97498.0,0.32707328]
[1738777977851,2.75273588,97499.0,97498.0,0.30407328]
[1738777978422,2.75273588,97499.0,97498.0,0.15407328]
[1738777978631,2.76273588,97499.0,97498.0,0.15407328]
[1738777978828,2.89163588,97499.0,97498.0,0.15407328]
[1738777980224,2.89163588,97499.0,97498.0,0.00022428]
[1738777982707,2.87663588,97499.0,97498.0,0.02322428]
[1738777983019,2.88163588,97499.0,97498.0,0.02322428]
[1738777983222,2.89163588,97499.0,97498.0,0.00022428]
[1738777984095,2.99413953,97499.0,97498.0,0.00022428]
[1738777987366,3.25049018,97499.0,97498.0,0.00022428]
[1738777987517,0.005,97465.0,97458.0,0.00735051]
[1738777987724,0.005,97465.0,97464.0,0.624202]
[1738777987974,0.005,97465.0,97464.0,0.647202]
[1738777988271,0.005,97465.0,97464.0,0.624202]
[1738777988480,0.005,97465.0,97464.0,0.647202]
[1738777988687,0.0881,97476.0,97475.0,0.153885]
[1738777990380,0.0881,97476.0,97475.0,0.176885]
[1738777990381,0.0831,97476.0,97475.0,0.176885]
[1738777990592,0.01086624,97497.0,97479.0,0.023]
[1738777990593,0.005,97484.0,97479.0,0.023]
[1738777990794,0.005,97484.0,97483.0,0.326872]
[1738777992073,0.005,97484.0,97483.0,0.303872]
[1738777992710,0.005,97484.0,97483.0,0.326872]
[1738777994630,0.0831,97485.0,97484.0,0.326871]
[1738777994631,0.0881,97485.0,97484.0,0.326871]
[1738777995202,0.0981,97485.0,97484.0,0.303871]
[1738777995559,0.0881,97485.0,97484.0,0.303871]
[1738777995917,0.005,97485.0,97484.0,0.42937465]
[1738777996119,2.75273588,97499.0,97498.0,0.153849]
[1738777996564,2.75273588,97499.0,97498.0,0.303849]
[1738777997369,2.75273588,97499.0,97498.0,0.326849]
[1738777999362,2.75273588,97499.0,97498.0,0.3341496]
[1738778000120,2.75273588,97499.0,97498.0,0.303849]
[1738778000651,2.75273588,97499.0,97498.0,0.326849]
[1738778000800,2.74773588,97499.0,97498.0,0.42935265]
[1738778001009,2.74773588,97499.0,97498.0,0.46127513]
[1738778002504,2.72722288,97499.0,97498.0,0.46127513]
[1738778002715,2.64517088,97499.0,97498.0,0.46127513]
[1738778003169,2.64517088,97499.0,97498.0,0.78157513]
[1738778003365,2.60414488,97499.0,97498.0,0.78157513]
[1738778003616,2.54260588,97499.0,97498.0,0.78157513]
[1738778004440,2.46055388,97499.0,97498.0,0.78157513]
[1738778004648,2.44004088,97499.0,97498.0,0.78157513]
[1738778005329,2.41952788,97499.0,97498.0,0.78157513]
[1738778005538,2.32134136,97499.0,97498.0,0.78157513]
[1738778006480,2.21877636,97499.0,97498.0,0.78157513]
[1738778006838,2.21484613,97499.0,97498.0,0.78157513]
[1738778007387,2.17382013,97499.0,97498.0,0.78157513]
[1738778007585,2.11228113,97499.0,97498.0,0.74965265]
[1738778007928,2.11228113,97499.0,97498.0,1.29155265]
[1738778009063,2.11228113,97499.0,97498.0,1.29177714]
[1738778011628,2.11228113,97499.0,97498.0,1.26877714]
[1738778011836,2.11228113,97499.0,97498.0,1.11877714]
[1738778012615,2.11228113,97499.0,97498.0,1.14177714]
[1738778012816,0.005,97510.0,97498.0,1.14177714]
[1738778012817,0.01,97574.0,97551.0,0.153765]
[1738778012990,0.0173723,97577.0,97551.0,0.84827548]
[1738778012991,9e-07,97552.0,97551.0,0.84827548]
[1738778013196,0.005,97576.0,97564.0,0.303745]
[1738778013398,0.005,97576.0,97564.0,0.99825548]
[1738778013781,1.565e-05,97565.0,97564.0,1.12102451]
[1738778014027,1.565e-05,97565.0,97564.0,0.99825548]
[1738778014769,1.565e-05,97565.0,97564.0,0.326745]
[1738778014949,1.565e-05,97565.0,97564.0,0.176745]
[1738778015151,0.00501565,97565.0,97564.0,0.176745]
[1738778023448,0.09661565,97565.0,97564.0,0.153745]
[1738778023659,0.14401565,97565.0,97564.0,0.153745]
[1738778023829,0.14401565,97565.0,97562.0,0.204996]
[1738778024064,0.015,97563.0,97562.0,0.153747]
[1738778024181,0.0937,97563.0,97562.0,0.153747]
[1738778024589,0.005,97546.0,97545.0,0.303775]
[1738778024834,0.0837,97546.0,97545.0,0.303775]
[1738778025033,0.0937,97546.0,97545.0,0.153775]
[1738778025265,0.1387,97546.0,97545.0,0.153775]
[1738778027419,0.08882354,97546.0,97545.0,0.153775]
[1738778028196,0.09917448,97546.0,97545.0,0.153775]
[1738778029224,0.09917448,97546.0,97543.0,0.205036]
[1738778029225,0.01,97544.0,97543.0,0.153776]
[1738778029440,0.01,97540.0,97539.0,0.205044]
[1738778031654,0.02035094,97540.0,97539.0,0.205044]
[1738778038558,0.01,97540.0,97539.0,0.205044]
[1738778040065,0.02029973,97540.0,97539.0,0.205044]
[1738778040934,0.01029973,97540.0,97539.0,0.378044]
[1738778041087,0.0001068,97546.0,97545.0,0.303775]
[1738778041290,0.0001068,97546.0,97545.0,0.326775]
[1738778044833,0.0001068,97546.0,97545.0,0.42927865]
[1738778045043,8e-07,97546.0,97545.0,0.42927865]
[1738778045415,8e-07,97546.0,97545.0,0.76650921]
[1738778045616,8e-07,97546.0,97545.0,1.37940426]
[1738778045866,0.01647957,97573.0,97564.0,0.303745]
[1738778046080,0.01,97603.0,97579.0,0.303721]
[1738778046283,0.01,97603.0,97579.0,1.13242614]
[1738778046480,1e-06,97580.0,97579.0,1.13944032]
[1738778046746,1e-06,97580.0,97579.0,1.17123606]
[1738778046947,1e-06,97580.0,97579.0,1.14655923]
[1738778047584,1e-06,97580.0,97579.0,1.47473545]
[1738778047785,0.01,97619.0,97596.0,0.303694]
[1738778047986,0.01,97615.0,97596.0,1.07770813]
[1738778048191,0.01,97615.0,97596.0,1.10070813]
[1738778048643,0.01,97616.0,97596.0,1.10070813]
[1738778048788,0.01,97615.0,97596.0,1.11473649]